[Event "13th Palmanova Festival A 2024"]
[Site "Palmanova"]
[Date "2025.01.02"]
[Round "8.13"]
[White "Aarav A"]
[Black "Skawinski, Arkadiusz"]
[Result "0-1"]
[ECO "A07"]
[WhiteElo "2186"]
[BlackElo "2330"]
[Annotator "TA"]
[PlyCount "68"]
[EventDate "2024.12.27"]
[EventCountry "ITA"]
[SourceTitle "playchess.com"]
[Source "ChessBase"]
[SourceQuality "1"]
[TimeControl "6000+30"]

{[%evp 9,68,4,0,-13,-5,-12,-16,-17,-9,-15,-6,-4,-11,-16,-12,-44,33,42,35,0,0,-29,-25,-19,-18,-237,-225,-229,-137,-153,-141,-146,-146,-153,-152,-130,-123,-129,-132,-120,-100,-202,-187,-207,-209,-190,-209,-294,-285,-320,-271,-303,-291,-1120,-1114,-1633,-1387,-29975,-29976,-6334,-4902]} 1. Nf3 {[%emt 0:00:10]} d5 {[%emt 0:00:06]} 2. g3 {[%emt 0:00:13]} Nf6 {[%emt 0:00:04]} 3. Bg2 {[%emt 0:00:07]} e6 {[%emt 0:00:03]} 4. O-O {[%emt 0:00:11]} Be7 {[%emt 0:00:11]} 5. d3 {[%emt 0:00:11]} O-O {[%emt 0:00:10]} 6. Bf4 {[%emt 0:00:11]} b6 {[%emt 0:17:19]} 7. c4 {[%emt 0:01:01]} Bb7 {[%emt 0:00:32]} 8. Nc3 {[%emt 0:00:12]} c5 {[%emt 0:01:59]} 9. e4 {[%emt 0:00:06]} d4 {[%emt 0:17:36]} 10. Nb1 {[%emt 0:00:07]} Nc6 {[%emt 0:21:58]} 11. e5 {[%emt 0:02:17]} Nd7 {[%emt 0:00:19]} 12. h4 {[%emt 0:00:15]} f5 {[%emt 0:03:41]} (12... Qc8 $15) 13. exf6 $14 {[%emt 0:00:46]} Bxf6 {[%emt 0:06:01]} 14. Ng5 {[%emt 0:15:34]} Bxg5 {[%emt 0:00:11]} 15. Bxg5 {[%emt 0:00:06]} Qc7 {[%emt 0:00:23]} 16. Qe2 {[%emt 0:05:39]} Nce5 {[%emt 0:07:40]} 17. Bf4 $2 {[%emt 0:05:17]} (17. Bxb7 $1 $11 {and White stays safe.} Qxb7 18. f4) 17... Bxg2 $19 {[%emt 0:00:26]} 18. Kxg2 {[%emt 0:00:05] [#]} Qc6+ {[%emt 0:00:29]} (18... Rxf4 $1 $19 19. gxf4 Ng6 20. Qxe6+ Kh8) 19. Kh3 {[%emt 0:01:13]} Nf3 {[%emt 0:06:30] Black is much more active. The white rooks are passive. A dynamic duo of knights.} 20. Nd2 {[%emt 0:07:04]} Nxd2 {[%emt 0:00:06]} 21. Bxd2 {[%emt 0:00:06] [#]} Rf3 $1 {[%emt 0:00:30]} 22. Rae1 {[%emt 0:03:53]} e5 {[%emt 0:00:44]} 23. Qe4 {[%emt 0:00:42]} Qe6+ {[%emt 0:05:01]} 24. Kg2 {[%emt 0:00:38]} Raf8 {[%emt 0:00:04]} 25. b4 {[%emt 0:06:50]} (25. Bc1 $17) 25... Qf5 {[%emt 0:01:09]} 26. Qxf5 {[%emt 0:00:55]} R8xf5 {[%emt 0:00:07]} 27. bxc5 {[%emt 0:01:31]} bxc5 {[%emt 0:02:35]} (27... Nxc5 28. Bf4 Rxd3 (28... exf4 $2 29. Kxf3 fxg3+ 30. Kxg3 $18) 29. Bxe5 $17) 28. Rb1 {[%emt 0:00:58]} (28. Ba5 {might work better.}) 28... Rxd3 {[%emt 0:00:06]} 29. Rb7 {[%emt 0:00:05]} Rxd2 {[%emt 0:00:51]} 30. Rxd7 {[%emt 0:00:07]} e4 {[%emt 0:00:04] Hoping for ...e3.} ({But not} 30... Rxa2 31. Rd5 $19) 31. Kh3 $2 {[%emt 0:01:38]} (31. Kg1) 31... Rfxf2 {[%emt 0:00:26]} 32. Rh1 {[%emt 0:00:34]} h5 {[%emt 0:01:52] ( -> ...e3)} 33. Rd5 {[%emt 0:00:07]} e3 {[%emt 0:00:08]} 34. Rxh5 {[%emt 0:00:49]} e2 {[%emt 0:01:02]} 0-1

[Event "13th Palmanova Festival A 2024"]
[Site "Palmanova"]
[Date "2025.01.02"]
[Round "8.14"]
[White "Bouska, Jiri"]
[Black "Candian, Lorenzo"]
[Result "1/2-1/2"]
[ECO "C49"]
[WhiteElo "2267"]
[BlackElo "2208"]
[Annotator "TA"]
[PlyCount "73"]
[EventDate "2024.12.27"]
[EventCountry "ITA"]
[SourceTitle "playchess.com"]
[Source "ChessBase"]
[SourceQuality "1"]
[TimeControl "6000+30"]

{[%evp 12,73,25,37,18,32,33,31,27,27,28,21,27,36,27,29,43,10,60,38,32,0,0,0,0,0,0,0,0,0,0,0,0,0,0,0,0,0,0,0,0,-45,-9,-11,-10,-18,-18,-14,-7,-7,-8,-8,-2,-9,-9,-9,-13,-13,0,0,0,0,0,0]} 1. e4 {[%emt 0:00:03]} e5 {[%emt 0:06:03]} 2. Nf3 {[%emt 0:00:27]} Nc6 {[%emt 0:00:05]} 3. Nc3 {[%emt 0:00:06]} Nf6 {[%emt 0:00:33]} 4. Bb5 {[%emt 0:00:10]} Bb4 {[%emt 0:00:27]} 5. O-O {[%emt 0:00:15]} O-O {[%emt 0:00:10]} 6. Bxc6 {[%emt 0:00:37]} bxc6 {[%emt 0:00:49]} 7. Nxe5 {[%emt 0:00:16]} Re8 {[%emt 0:02:32]} 8. Nd3 {[%emt 0:00:12]} Bxc3 {[%emt 0:00:15]} 9. dxc3 {[%emt 0:00:09]} Nxe4 {[%emt 0:00:05]} 10. Re1 {[%emt 0:00:28]} d6 {[%emt 0:13:42]} 11. f3 {[%emt 0:04:35]} Nf6 {[%emt 0:02:46]} 12. Bg5 {[%emt 0:05:09]} Be6 {[%emt 0:04:25]} 13. Bh4 {[%emt 0:05:57]} a5 {[%emt 0:09:13]} 14. a4 {[%emt 0:07:06][%cal Oc3c4]} c5 {[%emt 0:00:50]} (14... h6 $11) 15. Qd2 {[%emt 0:01:45]} h6 {[%emt 0:08:36]} 16. f4 {[%emt 0:35:14]} Ne4 {[%emt 0:07:33]} 17. Rxe4 {[%emt 0:00:55]} Qxh4 {[%emt 0:00:06]} 18. Rae1 {[%emt 0:00:44][%cal Of4f5] Black must now prevent f5!.} Bd7 {[%emt 0:07:44]} 19. Ne5 {[%emt 0:11:04]} Qd8 {[%emt 0:25:13]} 20. Nxd7 {[%emt 0:08:16]} Qxd7 {[%emt 0:00:11]} 21. b3 {[%emt 0:01:56]} Rxe4 {[%emt 0:02:08]} 22. Rxe4 $11 {[%emt 0:00:01][%mdl 4096] Endgame KQR-KQR} Re8 {[%emt 0:00:02]} 23. Qe2 {[%emt 0:01:57]} Rxe4 {[%emt 0:00:41]} 24. Qxe4 {[%emt 0:00:01] KQ-KQ} d5 {[%emt 0:00:27]} 25. Qe3 {[%emt 0:01:51]} Qf5 {[%emt 0:01:43]} 26. Qf2 {[%emt 0:05:46]} Qe4 {[%emt 0:01:27]} 27. g3 {[%emt 0:00:57]} c4 {[%emt 0:01:41]} 28. b4 {[%emt 0:05:33]} axb4 {[%emt 0:00:14]} 29. cxb4 {[%emt 0:00:54]} c3 {[%emt 0:00:15][%cal Od5d4] Strongly threatening ...d4!.} 30. a5 {[%emt 0:00:36]} Qxb4 {[%emt 0:00:47]} 31. a6 {[%emt 0:00:35]} c5 {[%emt 0:01:37]} 32. a7 {[%emt 0:01:13]} Qa5 {[%emt 0:00:14]} 33. a8=R+ {[%emt 0:02:37]} Qxa8 {[%emt 0:00:02]} 34. Qxc5 {[%emt 0:00:07]} Qa1+ {[%emt 0:02:10]} 35. Kf2 {[%emt 0:00:15]} Qh1 {[%emt 0:01:37]} (35... Qb2 $5 36. Qc8+ $8 Kh7 37. Qf5+ Kg8 $11) 36. Qc8+ {[%emt 0:00:28]} Kh7 {[%emt 0:00:01]} 37. Qf5+ {[%emt 0:00:06]} 1/2-1/2